bitfinex-derivatives/quotes_SOLF0:USTF0_20250903
["timestamp","ask_amount","ask_price","bid_price","bid_amount"]
[1756924684216,0.03604885,209.69,209.64,9.85091281]
[1756924684217,0.03604885,209.69,209.64,2.00091281]
[1756924684419,12.96711989,209.68,209.6,2.00091281]
[1756924684619,3.57620708,209.67,209.6,2.00091281]
[1756924684819,3.57620708,209.66,209.6,2.00091281]
[1756924685014,10.96620708,209.65,209.61,7.85]
[1756924685213,7.39,209.65,209.61,7.85]
[1756924685408,9.42696166,209.69,209.62,2.00091281]
[1756924685613,3.57482821,209.68,209.62,2.00091281]
[1756924685822,7.39,209.66,209.62,9.85091281]
[1756924686317,7.39,209.68,209.62,7.85]
[1756924686517,7.39,209.66,209.62,7.85]
[1756924686712,7.39,209.67,209.57,7.85]
[1756924686912,7.39,209.67,209.6,2.00091281]
[1756924687109,7.39,209.67,209.6,9.85091281]
[1756924687310,0.03190227,209.66,209.6,9.85091281]
[1756924687916,7.42190227,209.66,209.62,2.00091281]
[1756924688119,0.03190227,209.66,209.64,2.00091281]
[1756924688416,7.39,209.65,209.55,5.29882325]
[1756924688609,0.03190227,209.66,209.59,2.00091281]
[1756924688610,9.42281508,209.66,209.59,2.00091281]
[1756924688815,9.39091281,209.66,209.56,7.85]
[1756924689018,7.39,209.66,209.59,2.00091281]
[1756924689310,0.03501435,209.65,209.59,9.85091281]
[1756924690318,0.03501435,209.65,209.59,7.85]
[1756924690620,0.03501435,209.65,209.59,9.85091281]
[1756924691122,0.03501435,209.65,209.59,7.85]
[1756924691315,7.39,209.64,209.57,2.00091281]
[1756924692121,0.03179555,209.63,209.57,9.76091281]
[1756924693115,0.03179555,209.63,209.59,9.76091281]
[1756924693518,0.03179555,209.63,209.6,7.76]
[1756924693820,7.34179555,209.63,209.6,7.76]
[1756924694822,7.31,209.62,209.56,7.76]
[1756924695019,7.31,209.62,209.58,2.00091281]
[1756924695323,7.31,209.62,209.58,9.76091281]
[1756924695518,7.31,209.62,209.59,7.76]
[1756924695718,0.03179555,209.63,209.59,7.76]
[1756924695917,7.34179555,209.63,209.59,7.76]
[1756924696114,0.03179555,209.63,209.59,7.76]
[1756924696320,0.03179555,209.63,209.52,5.12450029]
[1756924696321,7.31,209.62,209.58,7.76]
[1756924697719,0.03179555,209.63,209.58,7.76]
[1756924697920,7.31,209.62,209.58,7.76]
[1756924698220,0.03179555,209.63,209.57,9.76091281]
[1756924699223,0.03179555,209.63,209.58,7.76]
[1756924699413,0.03179555,209.63,209.57,2.00091281]
[1756924700121,0.03179555,209.63,209.58,7.76]
[1756924700324,7.31,209.59,209.49,7.76]
[1756924700622,2.00091281,209.56,209.49,7.76]
[1756924701027,2.03207354,209.56,209.49,9.76091281]
[1756924701526,2.00091281,209.54,209.43,7.76]
[1756924701821,7.31,209.51,209.45,2.00091281]
[1756924702026,7.31,209.51,209.43,7.76]
[1756924702326,7.34442485,209.51,209.43,7.76]
[1756924702627,7.34442485,209.51,209.44,2.00091281]
[1756924703125,7.34442485,209.51,209.46,2.00091281]
[1756924703314,7.34442485,209.51,209.46,9.76091281]
[1756924703516,7.31,209.5,209.46,9.76091281]
[1756924704522,7.31,209.5,209.46,7.76]
[1756924704718,0.03442485,209.51,209.38,0.83101501]
[1756924704923,0.03442485,209.51,209.49,7.76]
[1756924705226,7.31,209.54,209.48,9.76091281]
[1756924705525,0.03066238,209.52,209.49,7.76]
[1756924705721,0.03066238,209.52,209.48,2.00091281]
[1756924705924,0.03066238,209.52,209.51,9.76091281]
[1756924706321,7.31,209.58,209.51,9.76091281]
[1756924706523,3.80624954,209.57,209.54,7.76]
[1756924706722,7.31,209.58,209.54,7.76]
[1756924706919,3.8416267,209.57,209.54,7.76]
[1756924707115,0.03516817,209.57,209.55,2.00091281]
[1756924707320,0.03516817,209.57,209.55,9.76091281]
[1756924707521,2.00091281,209.61,209.55,9.76091281]
[1756924707723,0.03574734,209.58,209.55,9.76091281]
[1756924708725,0.03574734,209.58,209.56,7.76]
[1756924710426,0.03574734,209.58,209.55,2.00091281]
[1756924710626,0.03574734,209.58,209.54,7.76]
[1756924711124,7.34574734,209.58,209.54,7.76]
[1756924711621,0.03574734,209.58,209.54,7.76]
[1756924711828,0.03574734,209.58,209.56,7.76]
[1756924712125,9.31091281,209.62,209.56,7.76]
[1756924712325,11.11449865,209.61,209.56,7.76]
[1756924712525,0.03628983,209.59,209.56,7.76]
[1756924712922,0.03628983,209.59,209.55,2.00091281]
[1756924713126,0.03628983,209.59,209.45,66.8211]
[1756924713127,0.03628983,209.59,209.58,7.76]
[1756924713526,2.00091281,209.64,209.58,7.76]
[1756924713722,0.03096172,209.61,209.58,7.76]
[1756924714029,0.03096172,209.61,209.43,95.1081]
[1756924714030,3.80460855,209.6,209.56,7.76]
[1756924714230,0.03096172,209.61,209.57,2.00091281]
[1756924714421,7.31,209.63,209.58,7.76]
[1756924714422,3.80470176,209.6,209.58,7.76]
[1756924714623,0.03229922,209.61,209.59,2.00091281]
[1756924714823,3.8047242,209.6,209.59,9.76091281]
[1756924715023,7.31,209.63,209.59,9.76091281]
[1756924715224,3.83979796,209.62,209.59,9.76091281]
[1756924715423,3.80492071,209.61,209.57,2.00091281]
[1756924715626,3.80492071,209.61,209.58,7.76]
[1756924716127,3.80658814,209.6,209.58,7.76]
[1756924716327,0.03666665,209.62,209.58,7.76]
[1756924716528,3.80718752,209.61,209.6,7.76]
[1756924716728,0.03666665,209.62,209.6,7.76]
[1756924717031,120.10091281,209.68,209.61,2.00091281]
[1756924717330,0.03090965,209.63,209.61,9.76091281]
[1756924717632,3.80790635,209.62,209.61,9.76091281]
[1756924717931,0.03090965,209.63,209.61,9.76091281]
[1756924718130,0.03090965,209.63,209.62,7.76]
[1756924721928,7.31,209.73,209.62,8.24]
[1756924722133,7.13290383,209.72,209.68,7.49]
[1756924722332,3.6672313,209.71,209.68,7.49]
[1756924722534,3.6672313,209.7,209.68,7.49]
[1756924722831,3.6672313,209.69,209.68,7.49]
[1756924723033,3.6672313,209.72,209.68,7.49]
[1756924723232,52.80091281,209.76,209.68,9.49091281]
[1756924723233,3.6672313,209.71,209.68,9.49091281]
[1756924723430,3.6672313,209.7,209.68,9.49091281]
[1756924723630,3.6672313,209.69,209.67,0.03202432]
[1756924723831,7.4,209.73,209.67,0.03202432]
[1756924724032,7.4,209.71,209.67,0.03202432]
[1756924724232,11.06857691,209.7,209.67,0.03202432]
[1756924724437,3.66857691,209.69,209.67,0.03202432]
[1756924725133,16.53649104,209.68,209.67,0.03202432]
[1756924728726,7.13557823,209.68,209.67,0.03202432]
[1756924730333,14.53557823,209.68,209.67,0.03202432]
[1756924730536,16.53649104,209.68,209.67,0.03202432]
[1756924731127,17.01649104,209.68,209.49,7.49]
[1756924731331,9.40091281,209.63,209.56,2.00091281]
[1756924731532,7.13557823,209.62,209.53,10.6200657]
[1756924731732,7.13557823,209.61,209.53,10.6200657]
[1756924731935,7.14305914,209.6,209.53,10.6200657]
[1756924732233,3.66878167,209.59,209.53,10.6200657]
[1756924732428,3.66878167,209.58,209.53,3.1300657]
[1756924732625,3.66878167,209.58,209.54,7.49]
[1756924733033,3.66878167,209.58,209.53,3.1300657]
[1756924733231,3.66878167,209.58,209.54,7.49]
[1756924733435,3.66878167,209.58,209.53,3.1300657]
[1756924734037,3.66878167,209.58,209.54,7.49]
[1756924735139,3.66878167,209.58,209.52,7.49]
[1756924736141,3.66878167,209.58,209.54,3.1300657]
[1756924736840,3.66878167,209.58,209.55,7.49]
[1756924737532,3.66878167,209.58,209.51,3.1300657]
[1756924737834,3.66878167,209.58,209.54,3.1300657]
[1756924738039,3.66878167,209.58,209.55,7.49]
[1756924738442,0.03484569,209.59,209.54,3.1300657]
[1756924738741,0.03484569,209.59,209.55,7.49]
[1756924739041,0.03484569,209.59,209.58,7.49]
[1756924741445,7.4,209.66,209.58,7.49]
[1756924741643,3.69088231,209.65,209.6,3.1300657]
[1756924741947,3.69088231,209.64,209.61,7.49]
[1756924742244,49.04,209.7,209.61,7.49]
[1756924742444,7.164079,209.69,209.61,7.49]
[1756924742639,7.164079,209.68,209.64,7.49]
[1756924742836,3.69017081,209.67,209.64,7.49]
[1756924743036,3.69017081,209.66,209.64,7.49]
[1756924743239,7.4,209.7,209.63,10.65175224]
[1756924743441,7.16338176,209.69,209.63,10.65175224]
[1756924743647,7.4,209.7,209.63,3.16175224]
[1756924743648,3.68980684,209.68,209.63,3.16175224]
[1756924743846,3.68980684,209.67,209.63,3.16175224]
[1756924744147,7.4,209.7,209.63,10.65175224]
[1756924744449,3.68938354,209.69,209.63,10.65175224]
[1756924744642,3.68938354,209.68,209.63,3.16175224]
[1756924744843,7.4,209.73,209.64,7.49]
[1756924745039,7.16256266,209.72,209.64,7.49]
[1756924745342,7.16256266,209.71,209.64,7.49]
[1756924745543,3.68938341,209.7,209.64,7.49]
[1756924745742,3.68938341,209.69,209.63,3.16359523]
[1756924745947,3.68938341,209.68,209.63,3.16359523]
[1756924746151,7.4,209.73,209.63,10.65359523]
[1756924746448,7.16045549,209.72,209.63,10.65359523]
[1756924746644,3.1300657,209.75,209.63,10.65359523]
[1756924746645,14.56045549,209.71,209.63,0.03352953]
[1756924746849,7.4,209.69,209.6,3.1300657]
[1756924747044,3.68830587,209.68,209.65,0.03159465]
[1756924747240,3.68830587,209.67,209.65,0.03159465]
[1756924747445,3.68830587,209.66,209.65,0.03159465]
[1756924748250,14.55876018,209.66,209.65,0.03159465]
[1756924748850,18.16882588,209.66,209.56,7.49]
[1756924749051,7.4,209.64,209.56,7.49]
[1756924749250,7.15876018,209.63,209.56,7.49]
[1756924749452,3.1300657,209.66,209.54,3.1300657]
[1756924749453,7.1586112,209.62,209.54,3.1300657]
[1756924749644,11.08830587,209.61,209.54,3.1300657]
[1756924749847,3.68830587,209.6,209.54,3.1300657]
[1756924750046,11.08830587,209.59,209.54,10.6200657]
[1756924750349,7.4,209.59,209.54,10.6200657]
[1756924750952,0.0320674,209.6,209.54,10.6200657]
[1756924751153,3.68811146,209.59,209.54,10.6200657]
[1756924751465,0.0320674,209.6,209.54,10.6200657]
[1756924751654,11.08902599,209.59,209.54,7.49]
[1756924751855,3.68902599,209.58,209.54,7.49]
[1756924752055,7.4,209.59,209.54,7.49]
[1756924752255,3.68879136,209.58,209.54,7.49]
[1756924752554,7.4,209.59,209.54,7.49]
[1756924752755,3.68826109,209.58,209.54,7.49]
[1756924752956,7.4,209.59,209.54,7.49]
[1756924753155,3.68826109,209.58,209.52,3.1300657]
[1756924753456,7.4,209.59,209.52,10.5700657]
[1756924753658,3.68848664,209.58,209.52,10.5700657]
[1756924753959,7.4,209.59,209.52,10.5700657]
[1756924754152,3.68848664,209.58,209.52,10.5700657]
[1756924754352,7.4,209.59,209.52,10.5700657]
[1756924754652,3.68871651,209.58,209.52,10.5700657]
[1756924754852,7.4,209.59,209.52,10.5700657]
[1756924755047,3.68869989,209.58,209.52,10.5700657]
[1756924755256,7.52,209.56,209.52,10.5700657]
[1756924755451,0.0320674,209.6,209.53,7.44]
[1756924755654,3.70004866,209.59,209.53,7.44]
[1756924755850,3.70004866,209.58,209.52,7.44]
[1756924756050,3.70004866,209.57,209.52,3.1300657]
[1756924756357,3.70004866,209.56,209.53,7.44]
[1756924756555,7.5520674,209.6,209.53,7.44]
[1756924756755,7.1724217,209.59,209.53,7.44]
[1756924756956,3.69991974,209.58,209.53,7.44]
[1756924757153,7.5520674,209.6,209.53,7.44]
[1756924757352,3.70030055,209.59,209.53,7.44]
[1756924757550,3.70030055,209.58,209.52,3.1300657]
[1756924757858,7.5520674,209.6,209.53,7.44]
[1756924758058,3.70075135,209.59,209.53,7.44]
[1756924758262,3.70075135,209.58,209.52,3.1300657]
[1756924758456,3.70075135,209.57,209.52,3.1300657]
[1756924758661,7.5520674,209.6,209.53,7.44]
[1756924758861,3.7011228,209.59,209.53,7.44]
[1756924759058,3.7011228,209.58,209.53,7.44]
[1756924759267,3.7011228,209.57,209.53,7.44]
[1756924759456,0.0320674,209.6,209.53,7.44]
[1756924759659,3.70104003,209.59,209.53,7.44]
[1756924759862,3.70104003,209.58,209.53,7.44]
[1756924760060,3.70104003,209.57,209.52,3.1300657]
[1756924760257,0.0320674,209.6,209.53,7.44]
[1756924760461,3.70106311,209.59,209.53,7.44]
[1756924760766,3.70106806,209.58,209.52,3.1300657]
[1756924760965,3.70106806,209.57,209.52,3.1300657]
[1756924761266,0.0320674,209.6,209.56,7.44]
[1756924761459,0.0320674,209.6,209.55,3.1300657]
[1756924761666,0.0320674,209.6,209.52,7.44]
[1756924761870,3.701611,209.59,209.56,7.44]
[1756924762064,0.0320674,209.6,209.56,7.44]
[1756924762265,0.0320674,209.6,209.55,3.1300657]
[1756924763169,0.0320674,209.6,209.56,7.44]
[1756924765570,7.5520674,209.6,209.56,7.44]
[1756924765775,7.52,209.59,209.55,3.1300657]
[1756924766170,0.0320674,209.6,209.55,3.1300657]
[1756924766473,7.52,209.59,209.55,3.1300657]
[1756924767273,0.0320674,209.6,209.55,3.1300657]
[1756924767472,7.52,209.59,209.55,3.1300657]
[1756924768170,7.52,209.59,209.47,7.44]
[1756924768474,7.52,209.59,209.5,3.1300657]
[1756924768870,7.55615282,209.55,209.51,7.44]
[1756924769074,7.52,209.54,209.47,10.5700657]
[1756924771276,0.03615282,209.55,209.5,3.1300657]
[1756924771577,7.52,209.55,209.51,7.44]
[1756924771981,7.55150683,209.55,209.51,7.44]
[1756924772478,0.03150683,209.55,209.51,7.44]
[1756924772679,0.03150683,209.55,209.5,3.1300657]
[1756924772973,0.03150683,209.55,209.51,7.44]
[1756924773176,0.03150683,209.55,209.53,3.1300657]
[1756924773375,7.52,209.62,209.54,7.44]
[1756924773575,7.52,209.62,209.56,3.1300657]
[1756924773977,5.29416714,209.69,209.57,7.44]
[1756924774178,7.52,209.68,209.59,3.1300657]
[1756924774584,7.52,209.68,209.61,0.03255779]
[1756924777779,7.52,209.68,209.64,7.44]
[1756924777974,7.52,209.72,209.63,10.5700657]
[1756924778372,34.02,209.74,209.65,0.0306465]
[1756924778582,7.52,209.73,209.65,0.0306465]
[1756924782081,7.88,209.71,209.65,0.0306465]
[1756924782785,7.88,209.68,209.65,0.0306465]
[1756924783079,7.88,209.66,209.65,0.0306465]
[1756924783483,8.36,209.66,209.65,0.0306465]
[1756924784789,7.88,209.66,209.65,0.0306465]
[1756924785179,11.4900657,209.66,209.53,10.4300657]
[1756924785389,3.1300657,209.66,209.53,10.4300657]
[1756924785581,3.1300657,209.63,209.53,7.3]
[1756924785787,7.88,209.62,209.53,7.3]
[1756924786390,7.88,209.59,209.5,3.1300657]
[1756924787791,7.88,209.59,209.49,7.3]
[1756924789088,7.88,209.59,209.43,7.3]
[1756924789393,3.1300657,209.57,209.44,3.1300657]
[1756924789595,7.88,209.56,209.44,3.1300657]
[1756924789792,0.03216751,209.53,209.44,3.1300657]
[1756924791298,0.03216751,209.53,209.43,10.4300657]
[1756924793601,0.03216751,209.53,209.47,2.00483542]
[1756924794694,0.03216751,209.53,209.4,7.3]
[1756924794902,0.03216751,209.53,209.5,7.3]
[1756924795101,2.00483542,209.56,209.5,7.3]
[1756924795300,7.9144199,209.54,209.5,7.3]
[1756924796197,7.9144199,209.54,209.49,2.00483542]
[1756924796401,7.9144199,209.54,209.5,7.3]
[1756924796802,0.0344199,209.54,209.5,7.3]
[1756924797003,7.9144199,209.54,209.5,7.3]
[1756924798405,0.0344199,209.54,209.48,2.00483542]
[1756924798703,0.0344199,209.54,209.46,7.3]
[1756924799105,0.0344199,209.54,209.48,2.00483542]
[1756924799306,0.0344199,209.54,209.46,7.3]
[1756924799506,0.0344199,209.54,209.48,2.00483542]
[1756924799804,0.0344199,209.54,209.48,9.30483542]
[1756924800395,0.0344199,209.54,209.48,7.3]
[1756924800599,0.0344199,209.54,209.48,9.30483542]
[1756924800800,0.0344199,209.54,209.5,2.00483542]
[1756924801102,7.9144199,209.54,209.49,9.30483542]
[1756924801493,7.88,209.54,209.49,2.00483542]
[1756924801693,7.9119906,209.54,209.49,9.30483542]
[1756924801896,7.88,209.53,209.49,9.30483542]
[1756924802093,7.9119906,209.54,209.5,7.3]
[1756924804305,0.0319906,209.54,209.49,2.00483542]
[1756924804504,7.88,209.53,209.47,2.00483542]
[1756924805399,7.88,209.53,209.46,7.3]
[1756924805400,9.88483542,209.53,209.46,7.3]
[1756924805604,7.88,209.5,209.43,2.00483542]
[1756924806206,0.03411388,209.49,209.43,2.00483542]
[1756924807298,0.03411388,209.49,209.45,2.00483542]
[1756924807504,0.03411388,209.49,209.45,9.30483542]
[1756924807702,0.03411388,209.49,209.46,7.3]
[1756924807900,0.03411388,209.49,209.45,2.00483542]
[1756924808101,0.03411388,209.49,209.46,7.3]
[1756924809104,0.03411388,209.49,209.44,2.00483542]
[1756924809311,7.88,209.48,209.44,2.00483542]
[1756924810006,7.88,209.48,209.43,2.00483542]
[1756924810207,7.88,209.48,209.43,9.30483542]
[1756924810407,7.88,209.48,209.43,2.00483542]
[1756924810609,0.03411388,209.49,209.44,7.3]
[1756924810906,7.88,209.48,209.41,2.00483542]
[1756924811103,7.88,209.48,209.41,9.30483542]
[1756924813213,7.88,209.48,209.41,7.3]
[1756924813414,7.88,209.48,209.42,2.00483542]
[1756924814012,7.88,209.48,209.41,9.30483542]
[1756924814213,7.44,209.48,209.41,7.3]
[1756924814413,7.44,209.48,209.43,2.00483542]
[1756924815008,2.0389493,209.49,209.43,2.00483542]
[1756924815404,7.44,209.48,209.43,2.00483542]
[1756924815710,7.44,209.48,209.34,7.79]
[1756924815914,2.00483542,209.47,209.41,2.00483542]
[1756924816309,7.47341529,209.46,209.33,0.83116387]
[1756924816612,7.44,209.41,209.3,7.79]
[1756924816813,7.44,209.41,209.34,2.00483542]
[1756924817813,7.44,209.41,209.33,7.79]
[1756924817814,0.03082628,209.42,209.36,2.00483542]
[1756924818012,7.47082628,209.42,209.36,2.00483542]
[1756924818212,7.47082628,209.42,209.35,2.00483542]
[1756924818709,7.47082628,209.42,209.37,2.00483542]
[1756924818919,7.47082628,209.42,209.38,7.79]
[1756924819107,7.44,209.42,209.38,7.79]
[1756924819314,7.44,209.41,209.37,2.00483542]
[1756924819509,7.44,209.41,209.37,9.79483542]
[1756924819709,2.00483542,209.44,209.37,2.00483542]
[1756924820016,0.03122361,209.41,209.37,2.00483542]
[1756924820214,0.03122361,209.41,209.39,9.79483542]
[1756924820416,0.03122361,209.41,209.37,9.79483542]
[1756924820720,2.00483542,209.44,209.38,7.79]
[1756924821018,0.03336099,209.41,209.38,7.79]
[1756924821716,0.03336099,209.41,209.37,2.00483542]
[1756924821917,0.03336099,209.41,209.4,7.79]
[1756924822117,39.42483542,209.46,209.4,7.79]
[1756924822318,0.03668632,209.43,209.4,7.79]
[1756924825820,0.03668632,209.43,209.37,2.00483542]
[1756924826217,0.03668632,209.43,209.4,7.79]
[1756924826615,0.03668632,209.43,209.39,2.00483542]
[1756924826616,7.47668632,209.43,209.38,9.79483542]
[1756924826823,7.47668632,209.43,209.29,4.2988]
[1756924827022,7.44,209.43,209.37,2.00483542]
[1756924827223,0.034333,209.38,209.37,9.79483542]
[1756924830315,0.034333,209.38,209.35,2.00483542]
[1756924830515,0.034333,209.38,209.32,9.79483542]
[1756924830924,0.034333,209.38,209.35,7.79]
[1756924834420,7.474333,209.38,209.35,7.79]
[1756924835225,7.474333,209.38,209.32,2.00483542]
[1756924835425,0.034333,209.38,209.32,7.79]
[1756924835625,0.034333,209.38,209.32,9.79483542]
[1756924835626,2.03916842,209.38,209.32,9.79483542]
[1756924836215,2.03916842,209.38,209.32,7.79]
[1756924837128,9.47916842,209.38,209.32,7.79]
[1756924837728,7.474333,209.38,209.32,7.79]
[1756924838327,9.47916842,209.38,209.32,7.79]
[1756924838523,2.03916842,209.38,209.32,7.79]
[1756924838825,0.034333,209.38,209.35,2.00483542]
[1756924839220,9.44483542,209.43,209.35,9.79483542]
[1756924839420,0.03345312,209.39,209.35,2.00483542]
[1756924839621,0.03345312,209.39,209.36,7.79]
[1756924840026,0.03345312,209.39,209.35,2.00483542]
[1756924840426,0.03345312,209.39,209.36,7.79]
[1756924840929,0.03345312,209.39,209.29,7.79]
[1756924841232,7.44,209.45,209.38,9.79483542]
[1756924841829,0.03464995,209.44,209.38,9.79483542]
[1756924842331,0.03464995,209.44,209.42,2.00483542]
[1756924842532,0.03464995,209.44,209.43,7.99]
[1756924842732,7.54,209.49,209.43,7.99]
[1756924843027,7.54,209.49,209.42,2.00483542]
[1756924843028,0.03243867,209.46,209.42,2.00483542]
[1756924843238,0.03243867,209.46,209.43,7.99]
[1756924843441,0.03243867,209.46,209.42,2.00483542]
[1756924844034,0.03243867,209.46,209.37,4.2972]
[1756924844335,0.03243867,209.46,209.44,7.99]
[1756924845842,0.03243867,209.46,209.36,7.99]
[1756924846041,0.03243867,209.46,209.4,2.00483542]
[1756924846531,7.54,209.45,209.39,7.99]
[1756924846938,7.54,209.43,209.39,7.99]
[1756924848538,2.00483542,209.45,209.39,7.99]
[1756924850940,2.00483542,209.45,209.36,2.00483542]
[1756924850941,2.00483542,209.43,209.37,7.99]
[1756924851350,120.24483542,209.43,209.37,7.99]
[1756924852246,9.54483542,209.41,209.37,7.99]
[1756924852547,7.54,209.46,209.37,7.99]
[1756924852741,120.20483542,209.45,209.37,7.99]
[1756924852937,0.03329315,209.41,209.4,2.00483542]
[1756924853144,0.03329315,209.41,209.4,9.99483542]
[1756924853346,21.66,209.46,209.4,9.99483542]
[1756924853642,0.03579682,209.43,209.4,7.99]
[1756924854645,0.03579682,209.43,209.39,7.99]
[1756924854848,0.03579682,209.43,209.38,2.00483542]
[1756924855040,0.03579682,209.43,209.39,7.99]
[1756924855246,0.03579682,209.43,209.38,2.00483542]
[1756924855446,0.03579682,209.43,209.38,7.99]
[1756924856348,0.03579682,209.43,209.37,7.99]
[1756924856648,27.14,209.46,209.37,7.99]
[1756924856845,7.54,209.47,209.37,7.99]
[1756924857149,0.03112845,209.42,209.37,7.99]
[1756924857947,0.03112845,209.42,209.39,3.13462428]
[1756924858250,7.54,209.52,209.43,7.99]
[1756924859348,7.54,209.52,209.46,7.99]
[1756924860350,7.54,209.56,209.46,7.99]
[1756924860849,7.54,209.56,209.47,7.99]
[1756924861051,195.29109683,209.59,209.5,7.99]
[1756924861251,189.99692969,209.59,209.5,7.99]
[1756924862250,71.83692969,209.59,209.5,7.99]
[1756924862455,189.97692969,209.59,209.5,7.99]
[1756924862849,71.83692969,209.59,209.5,7.99]
[1756924863052,7.54,209.6,209.52,7.99]
[1756924863650,7.54,209.6,209.42,66.8303]
[1756924863651,7.54,209.6,209.54,0.03582445]
[1756924864042,118.1,209.6,209.31,66.8658]
[1756924864248,7.54,209.56,209.55,0.03490704]
[1756924864445,7.54,209.56,209.46,7.99]
[1756924864645,125.8,209.56,209.46,7.99]
[1756924864948,10.67462428,209.54,209.53,0.0308385]
[1756924865341,10.67462428,209.54,209.43,7.99]
[1756924865543,10.67462428,209.54,209.51,0.03122085]
[1756924865749,7.54,209.53,209.43,7.99]
[1756924866144,3.13462428,209.54,209.5,0.03361508]
[1756924866342,7.54,209.53,209.5,0.03361508]
[1756924867150,3.13462428,209.54,209.5,0.03361508]
[1756924867451,7.54,209.53,209.5,0.03361508]
[1756924868643,3.13462428,209.54,209.5,0.03361508]
[1756924869248,7.54,209.53,209.5,0.03361508]
[1756924869443,3.13462428,209.54,209.5,0.03361508]
[1756924869647,10.67462428,209.51,209.5,0.03361508]
[1756924870048,11.15462428,209.51,209.5,0.03361508]
[1756924870446,129.27462428,209.51,209.39,7.99]
[1756924870752,128.79462428,209.51,209.39,7.99]
[1756924871350,7.54,209.47,209.39,7.99]
[1756924871552,7.57507908,209.47,209.39,7.99]
[1756924875554,3.58811826,209.46,209.39,7.99]
[1756924875750,3.58811826,209.45,209.39,7.99]
[1756924876051,7.76,209.43,209.39,7.99]
[1756924876252,11.34811826,209.42,209.39,7.99]
[1756924876449,3.58811826,209.41,209.39,7.99]
[1756924877559,3.58811826,209.41,209.33,3.13462428]
[1756924877754,3.58811826,209.41,209.34,7.96]
[1756924878253,3.6217554,209.4,209.34,7.96]
[1756924878455,0.03363714,209.4,209.34,7.96]
[1756924881159,7.76,209.38,209.33,7.96]
[1756924881359,7.76,209.38,209.32,11.09462428]
[1756924882057,0.03363714,209.4,209.33,7.96]
[1756924882259,3.58924073,209.39,209.33,7.96]
[1756924882459,0.03363714,209.4,209.33,7.96]
[1756924882650,3.58969397,209.39,209.33,7.96]
[1756924882857,3.58969397,209.38,209.3,7.96]
[1756924883056,3.58969397,209.37,209.3,7.96]
[1756924883360,7.76,209.4,209.3,7.96]
[1756924883563,3.58913617,209.39,209.3,7.96]
[1756924883758,0.03531008,209.36,209.3,7.96]
[1756924889462,7.79531008,209.36,209.3,7.96]
[1756924890457,0.03531008,209.36,209.3,7.96]
[1756924901669,0.03531008,209.36,209.3,5.96]
[1756924914876,0.03531008,209.36,209.31,7.32]
[1756924915678,0.03531008,209.36,209.34,7.32]
[1756924916276,0.03531008,209.36,209.33,2.00726871]
[1756924916575,0.03531008,209.36,209.31,7.32]
[1756924916777,0.03531008,209.36,209.35,7.32]
[1756924920268,2.00726871,209.43,209.37,2.00726871]
[1756924920469,9.51726871,209.46,209.38,7.32]
[1756924920780,9.51726871,209.46,209.4,7.32]
[1756924921271,12.80416714,209.5,209.42,7.32]
[1756924921476,2.00726871,209.48,209.42,7.32]
[1756924922775,7.51,209.5,209.42,7.32]
[1756924922975,2.00726871,209.49,209.42,7.32]
[1756924923876,2.00726871,209.49,209.43,2.00726871]
[1756924924173,7.30143585,209.51,209.44,7.32]
[1756924924374,2.00726871,209.51,209.45,9.32726871]
[1756924924775,9.51726871,209.51,209.47,7.32]
[1756924924974,7.51,209.51,209.47,7.32]
[1756924925476,2.00726871,209.52,209.47,7.32]
[1756924925675,2.00726871,209.52,209.46,0.03061189]
[1756924925873,7.51,209.51,209.46,0.03061189]
[1756924926072,2.00726871,209.52,209.46,0.03061189]
[1756924926276,7.51,209.51,209.46,0.03061189]
[1756924926482,119.70726871,209.52,209.46,0.03061189]
[1756924926679,9.51726871,209.52,209.46,0.03061189]
[1756924926980,2.00726871,209.54,209.47,2.00726871]
[1756924927179,2.00726871,209.54,209.48,7.32]